[Event "*** SCC Grand Prix: Titled Tuesday Blitz"]
[Site "Chess.com"]
[Date "2020.09.29"]
[Round "8"]
[White "FearNoEvil12"]
[Black "dominikaf"]
[Result "0-1"]
[WhiteElo "2075"]
[BlackElo "2303"]
[TimeControl "180+1"]
[EndTime "11:31:57 PDT"]
[Termination "dominikaf won by resignation"]

1. e4 {[%clk 0:03:00.9]} 1... e5 {[%clk 0:02:59]} 2. d4 {[%clk 0:03:00.1]} 2...
exd4 {[%clk 0:02:59]} 3. Bc4 {[%clk 0:03:00.5]} 3... Nc6 {[%clk 0:02:54.8]} 4.
Nf3 {[%clk 0:03:00.8]} 4... Nf6 {[%clk 0:02:49.4]} 5. e5 {[%clk 0:03:01]} 5...
d5 {[%clk 0:02:47.8]} 6. Bb5 {[%clk 0:03:01.3]} 6... Ne4 {[%clk 0:02:47.6]} 7.
Nxd4 {[%clk 0:03:01.7]} 7... Bd7 {[%clk 0:02:47.1]} 8. Bxc6 {[%clk 0:03:00.7]}
8... bxc6 {[%clk 0:02:48]} 9. O-O {[%clk 0:03:00.4]} 9... Bc5 {[%clk 0:02:47.9]}
10. f3 {[%clk 0:03:00.3]} 10... Ng5 {[%clk 0:02:47.5]} 11. f4 {[%clk 0:03:00.9]}
11... Ne4 {[%clk 0:02:47.6]} 12. Nc3 {[%clk 0:03:00.8]} 12... Nxc3 {[%clk
0:02:34.9]} 13. bxc3 {[%clk 0:03:01.7]} 13... Qe7 {[%clk 0:02:33.2]} 14. Be3
{[%clk 0:03:01.1]} 14... Bb6 {[%clk 0:02:32.7]} 15. Qd2 {[%clk 0:03:01.4]} 15...
O-O {[%clk 0:02:27.3]} 16. Rae1 {[%clk 0:03:00.8]} 16... Rae8 {[%clk 0:02:26.1]}
17. Kh1 {[%clk 0:02:58.5]} 17... c5 {[%clk 0:02:25.9]} 18. Ne2 {[%clk
0:02:57.2]} 18... Bc6 {[%clk 0:02:24.6]} 19. Ng3 {[%clk 0:02:55.3]} 19... f6
{[%clk 0:01:59.7]} 20. e6 {[%clk 0:02:33.9]} 20... f5 {[%clk 0:01:49.9]} 21. Bf2
{[%clk 0:02:32.7]} 21... Qf6 {[%clk 0:01:44.1]} 22. Re5 {[%clk 0:02:20.6]} 22...
g6 {[%clk 0:01:26.7]} 23. Rfe1 {[%clk 0:02:19]} 23... Re7 {[%clk 0:01:26.9]} 24.
Qe2 {[%clk 0:02:17.7]} 24... Rfe8 {[%clk 0:01:25.7]} 25. Nf1 {[%clk 0:02:11.5]}
25... Bb7 {[%clk 0:01:16.8]} 26. Nd2 {[%clk 0:02:09.5]} 26... c6 {[%clk
0:01:15.3]} 27. Nf3 {[%clk 0:02:08]} 27... Bc7 {[%clk 0:01:15.1]} 28. Bh4 {[%clk
0:01:56.7]} 28... Qg7 {[%clk 0:01:08.7]} 29. Bxe7 {[%clk 0:01:52.7]} 29... Bxe5
{[%clk 0:01:08.3]} 30. Qxe5 {[%clk 0:01:36.5]} 30... Qxe5 {[%clk 0:01:01.6]} 31.
Nxe5 {[%clk 0:01:28.2]} 31... Rxe7 {[%clk 0:01:02.5]} 32. Nd7 {[%clk 0:01:26.7]}
32... c4 {[%clk 0:00:55.7]} 33. Nc5 {[%clk 0:01:18.4]} 33... Bc8 {[%clk
0:00:55.4]} 34. Kg1 {[%clk 0:01:08]} 34... Kg7 {[%clk 0:00:55]} 35. Kf2 {[%clk
0:01:07.7]} 35... Kf6 {[%clk 0:00:55.2]} 36. Rb1 {[%clk 0:01:06.3]} 36... Bxe6
{[%clk 0:00:52.6]} 37. Nxe6 {[%clk 0:01:04.3]} 37... Kxe6 {[%clk 0:00:52]} 38.
Kf3 {[%clk 0:00:59.6]} 38... Kd6 {[%clk 0:00:49.7]} 39. g3 {[%clk 0:00:58.9]}
39... c5 {[%clk 0:00:48.3]} 40. h4 {[%clk 0:00:57.6]} 40... d4 {[%clk
0:00:48.5]} 41. Rb8 {[%clk 0:00:53]} 41... Re3+ {[%clk 0:00:41.8]} 42. Kf2
{[%clk 0:00:51.5]} 42... Rxc3 {[%clk 0:00:42.1]} 0-1

[Event "*** SCC Grand Prix: Titled Tuesday Blitz"]
[Site "Chess.com"]
[Date "2020.09.29"]
[Round "8"]
[White "Evachess2006"]
[Black "Morshynska"]
[Result "0-1"]
[WhiteElo "1631"]
[BlackElo "2189"]
[TimeControl "180+1"]
[EndTime "11:31:59 PDT"]
[Termination "Morshynska won on time"]

1. e4 {[%clk 0:03:00.6]} 1... c5 {[%clk 0:02:59.7]} 2. c3 {[%clk 0:02:50.4]}
2... Nf6 {[%clk 0:02:58.2]} 3. e5 {[%clk 0:02:47.3]} 3... Nd5 {[%clk 0:02:58]}
4. d4 {[%clk 0:02:47.9]} 4... cxd4 {[%clk 0:02:58.9]} 5. Nf3 {[%clk 0:02:47.9]}
5... e6 {[%clk 0:02:58.3]} 6. cxd4 {[%clk 0:02:48.1]} 6... d6 {[%clk 0:02:57.5]}
7. exd6 {[%clk 0:02:45.1]} 7... Bxd6 {[%clk 0:02:56.7]} 8. Nc3 {[%clk
0:02:45.6]} 8... Nxc3 {[%clk 0:02:54.6]} 9. bxc3 {[%clk 0:02:46.5]} 9... O-O
{[%clk 0:02:49]} 10. Bd3 {[%clk 0:02:44.9]} 10... Nd7 {[%clk 0:02:33.2]} 11. O-O
{[%clk 0:02:19.4]} 11... Qc7 {[%clk 0:02:07.4]} 12. Bxh7+ {[%clk 0:01:04.3]}
12... Kxh7 {[%clk 0:02:08]} 13. Ng5+ {[%clk 0:01:03]} 13... Kg6 {[%clk
0:02:03.2]} 14. Qd3+ {[%clk 0:00:31.8]} 14... Kf6 {[%clk 0:01:04.2]} 15. Nh7+
{[%clk 0:00:17.7]} 15... Ke7 {[%clk 0:01:03.8]} 16. Nxf8 {[%clk 0:00:16.7]}
16... Nxf8 {[%clk 0:01:04]} 17. Qh3 {[%clk 0:00:10.4]} 17... b6 {[%clk 0:00:57]}
18. Bg5+ {[%clk 0:00:10.4]} 18... Ke8 {[%clk 0:00:55.7]} 19. f4 {[%clk
0:00:04.5]} 19... Bb7 {[%clk 0:00:52.1]} 20. f5 {[%clk 0:00:03.1]} 20... f6
{[%clk 0:00:41.3]} 21. Be3 {[%clk 0:00:02.1]} 21... e5 {[%clk 0:00:40.1]} 22.
dxe5 {[%clk 0:00:01.1]} 22... Bxe5 {[%clk 0:00:41]} 0-1

[Event "*** SCC Grand Prix: Titled Tuesday Blitz"]
[Site "Chess.com"]
[Date "2020.09.29"]
[Round "8"]
[White "exoticprincess"]
[Black "GmSergioBarrientos"]
[Result "1-0"]
[WhiteElo "2891"]
[BlackElo "2691"]
[TimeControl "180+1"]
[EndTime "11:32:07 PDT"]
[Termination "exoticprincess won by checkmate"]

1. e4 {[%clk 0:03:00.9]} 1... c5 {[%clk 0:02:59.5]} 2. Nf3 {[%clk 0:03:00.8]}
2... e6 {[%clk 0:02:59.6]} 3. d4 {[%clk 0:03:01]} 3... cxd4 {[%clk 0:03:00.1]}
4. Nxd4 {[%clk 0:03:01.9]} 4... a6 {[%clk 0:03:00.8]} 5. Be2 {[%clk 0:03:01.1]}
5... b5 {[%clk 0:03:01]} 6. O-O {[%clk 0:03:00.5]} 6... Bb7 {[%clk 0:03:01.2]}
7. Nd2 {[%clk 0:03:00.1]} 7... Nc6 {[%clk 0:03:01.6]} 8. c3 {[%clk 0:02:59.9]}
8... Nge7 {[%clk 0:03:01.5]} 9. N4b3 {[%clk 0:02:57.9]} 9... Ng6 {[%clk
0:03:01.1]} 10. a4 {[%clk 0:02:56.6]} 10... b4 {[%clk 0:02:57.7]} 11. Nc4 {[%clk
0:02:56.3]} 11... Qc7 {[%clk 0:02:43.6]} 12. Be3 {[%clk 0:02:53.8]} 12... bxc3
{[%clk 0:02:35.2]} 13. bxc3 {[%clk 0:02:53]} 13... Be7 {[%clk 0:02:34.6]} 14.
Rb1 {[%clk 0:02:52.1]} 14... Nce5 {[%clk 0:02:24.5]} 15. Bb6 {[%clk 0:02:46.5]}
15... Qb8 {[%clk 0:01:55.8]} 16. Nc5 {[%clk 0:02:30.7]} 16... Bc6 {[%clk
0:01:38.9]} 17. Na5 {[%clk 0:02:25.3]} 17... Qc8 {[%clk 0:01:22.9]} 18. Qd4
{[%clk 0:01:59.2]} 18... Nf4 {[%clk 0:00:59.5]} 19. Bxa6 {[%clk 0:01:57.8]}
19... Rxa6 {[%clk 0:00:46.9]} 20. Qxe5 {[%clk 0:01:57]} 20... Ng6 {[%clk
0:00:41.9]} 21. Qd4 {[%clk 0:01:36.8]} 21... Ra8 {[%clk 0:00:41.7]} 22. Rfd1
{[%clk 0:01:26.5]} 22... d6 {[%clk 0:00:28.5]} 23. Qxg7 {[%clk 0:00:53.2]} 23...
dxc5 {[%clk 0:00:19.9]} 24. Nc4 {[%clk 0:00:53.3]} 24... Rxa4 {[%clk 0:00:17]}
25. Nd6+ {[%clk 0:00:53.5]} 25... Bxd6 {[%clk 0:00:17.2]} 26. Rxd6 {[%clk
0:00:54.4]} 26... Bxe4 {[%clk 0:00:16.7]} 27. Rbd1 {[%clk 0:00:50.8]} 27... Bd5
{[%clk 0:00:16.4]} 28. h4 {[%clk 0:00:48.6]} 28... h5 {[%clk 0:00:15.3]} 29.
R1xd5 {[%clk 0:00:45.8]} 29... exd5 {[%clk 0:00:14.7]} 30. Rxg6 {[%clk 0:00:46]}
30... Rf8 {[%clk 0:00:13.8]} 31. Qe5+ {[%clk 0:00:40.6]} 31... Kd7 {[%clk
0:00:13.5]} 32. Rd6# {[%clk 0:00:39.8]} 1-0

[Event "*** SCC Grand Prix: Titled Tuesday Blitz"]
[Site "Chess.com"]
[Date "2020.09.29"]
[Round "8"]
[White "stolencandy13"]
[Black "Violord"]
[Result "0-1"]
[WhiteElo "2464"]
[BlackElo "2685"]
[TimeControl "180+1"]
[EndTime "11:32:10 PDT"]
[Termination "Violord won by resignation"]

1. e4 {[%clk 0:03:00.9]} 1... g6 {[%clk 0:02:48.8]} 2. d4 {[%clk 0:03:00.1]}
2... Bg7 {[%clk 0:02:48.3]} 3. Nc3 {[%clk 0:03:00.2]} 3... c6 {[%clk 0:02:48.6]}
4. f4 {[%clk 0:02:55.6]} 4... d5 {[%clk 0:02:47.9]} 5. e5 {[%clk 0:02:54.8]}
5... Nh6 {[%clk 0:02:48.5]} 6. Nf3 {[%clk 0:02:53.2]} 6... f6 {[%clk 0:02:48.1]}
7. Bd3 {[%clk 0:02:49.7]} 7... Bg4 {[%clk 0:02:43.9]} 8. h3 {[%clk 0:02:43.7]}
8... Bxf3 {[%clk 0:02:43.2]} 9. Qxf3 {[%clk 0:02:44.6]} 9... fxe5 {[%clk
0:02:43.8]} 10. fxe5 {[%clk 0:02:42.5]} 10... Rf8 {[%clk 0:02:43.1]} 11. Qg3
{[%clk 0:02:35.5]} 11... Nf5 {[%clk 0:02:42.3]} 12. Bxf5 {[%clk 0:02:30.5]}
12... Rxf5 {[%clk 0:02:41.7]} 13. Be3 {[%clk 0:02:27.2]} 13... Nd7 {[%clk
0:02:23.7]} 14. O-O-O {[%clk 0:02:26.6]} 14... Nb6 {[%clk 0:02:16.6]} 15. b3
{[%clk 0:02:16.3]} 15... Qd7 {[%clk 0:02:14.9]} 16. a4 {[%clk 0:02:10]} 16...
O-O-O {[%clk 0:02:10.7]} 17. Kb2 {[%clk 0:02:00.5]} 17... Na8 {[%clk 0:02:09.6]}
18. Rhf1 {[%clk 0:01:56.1]} 18... Nc7 {[%clk 0:02:08.4]} 19. Rf3 {[%clk
0:01:44.9]} 19... Rxf3 {[%clk 0:02:00]} 20. gxf3 {[%clk 0:01:39.5]} 20... Qf5
{[%clk 0:01:56.4]} 21. Qg4 {[%clk 0:01:26.5]} 21... Rf8 {[%clk 0:01:51.9]} 22.
f4 {[%clk 0:01:12.1]} 22... Ne6 {[%clk 0:01:47.6]} 23. Qh4 {[%clk 0:01:10.6]}
23... Qf7 {[%clk 0:01:34.8]} 24. Rf1 {[%clk 0:01:00.6]} 24... g5 {[%clk
0:01:29.3]} 25. Qg4 {[%clk 0:00:57.3]} 25... h5 {[%clk 0:01:29]} 26. Qe2 {[%clk
0:00:43.9]} 26... gxf4 {[%clk 0:01:28]} 27. Bg1 {[%clk 0:00:38.9]} 27... Qg6
{[%clk 0:01:25.8]} 28. Rf3 {[%clk 0:00:36]} 28... Qxg1 {[%clk 0:01:23.6]} 29.
Qd3 {[%clk 0:00:35.1]} 29... Qxd4 {[%clk 0:01:22.1]} 30. Qh7 {[%clk 0:00:34.2]}
30... Bxe5 {[%clk 0:01:21.3]} 31. Qxe7 {[%clk 0:00:31.5]} 31... Qe4 {[%clk
0:01:05.9]} 32. Qxe6+ {[%clk 0:00:19.7]} 32... Kb8 {[%clk 0:01:04.9]} 33. Qh6
{[%clk 0:00:19.7]} 33... Rh8 {[%clk 0:00:59]} 34. Rxf4 {[%clk 0:00:05.7]} 34...
Rxh6 {[%clk 0:00:55.5]} 0-1

[Event "*** SCC Grand Prix: Titled Tuesday Blitz"]
[Site "Chess.com"]
[Date "2020.09.29"]
[Round "8"]
[White "superchthonic"]
[Black "Gulkov_Igor"]
[Result "1/2-1/2"]
[WhiteElo "2571"]
[BlackElo "2444"]
[TimeControl "180+1"]
[EndTime "11:32:11 PDT"]
[Termination "Game drawn by repetition"]

1. Nf3 {[%clk 0:03:00.9]} 1... Nf6 {[%clk 0:02:59.3]} 2. g3 {[%clk 0:03:00.9]}
2... g6 {[%clk 0:02:59.3]} 3. Bg2 {[%clk 0:03:01.8]} 3... Bg7 {[%clk 0:02:59.4]}
4. O-O {[%clk 0:03:02.7]} 4... O-O {[%clk 0:02:59.5]} 5. d4 {[%clk 0:03:02.8]}
5... d6 {[%clk 0:02:59.3]} 6. c4 {[%clk 0:03:02.9]} 6... Nbd7 {[%clk 0:02:58.3]}
7. Nc3 {[%clk 0:03:03.1]} 7... e5 {[%clk 0:02:58.6]} 8. Qc2 {[%clk 0:02:59.4]}
8... Qe7 {[%clk 0:02:57.2]} 9. Rd1 {[%clk 0:02:55.6]} 9... c6 {[%clk 0:02:56.7]}
10. b3 {[%clk 0:02:46.5]} 10... Re8 {[%clk 0:02:41.7]} 11. e3 {[%clk 0:02:42.4]}
11... Nf8 {[%clk 0:02:39]} 12. Ba3 {[%clk 0:02:38.8]} 12... e4 {[%clk
0:02:36.8]} 13. Nd2 {[%clk 0:02:30.9]} 13... Bf5 {[%clk 0:02:33.8]} 14. Bb2
{[%clk 0:02:09.3]} 14... h5 {[%clk 0:02:32.5]} 15. h3 {[%clk 0:01:59.8]} 15...
N8h7 {[%clk 0:02:30.3]} 16. d5 {[%clk 0:01:42.3]} 16... c5 {[%clk 0:02:29.6]}
17. Ne2 {[%clk 0:01:38.9]} 17... Ng5 {[%clk 0:02:19.1]} 18. Nf4 {[%clk
0:01:32.7]} 18... Nd7 {[%clk 0:02:06]} 19. Bxg7 {[%clk 0:01:28.7]} 19... Kxg7
{[%clk 0:02:05.6]} 20. h4 {[%clk 0:01:28.7]} 20... Nh7 {[%clk 0:02:02.1]} 21.
Qc3+ {[%clk 0:01:21.1]} 21... Kg8 {[%clk 0:02:00.7]} 22. b4 {[%clk 0:01:06.3]}
22... Nhf6 {[%clk 0:01:45.1]} 23. bxc5 {[%clk 0:00:56.8]} 23... dxc5 {[%clk
0:01:34.5]} 24. Rab1 {[%clk 0:00:43.4]} 24... b6 {[%clk 0:01:33.8]} 25. a4
{[%clk 0:00:43]} 25... Qd6 {[%clk 0:01:25.4]} 26. a5 {[%clk 0:00:42.1]} 26...
Reb8 {[%clk 0:01:10.1]} 27. axb6 {[%clk 0:00:41]} 27... axb6 {[%clk 0:01:09.3]}
28. Ra1 {[%clk 0:00:41]} 28... Ne5 {[%clk 0:01:01.4]} 29. Rxa8 {[%clk
0:00:30.5]} 29... Rxa8 {[%clk 0:01:00.5]} 30. Ra1 {[%clk 0:00:31.1]} 30... Rxa1+
{[%clk 0:00:52.3]} 31. Qxa1 {[%clk 0:00:32]} 31... Ned7 {[%clk 0:00:43.2]} 32.
Qa8+ {[%clk 0:00:29.9]} 32... Kg7 {[%clk 0:00:42]} 33. Qa1 {[%clk 0:00:19.9]}
33... Kg8 {[%clk 0:00:41.2]} 34. Qa8+ {[%clk 0:00:17.6]} 34... Kg7 {[%clk
0:00:41.2]} 35. Qa1 {[%clk 0:00:17.6]} 35... Kg8 {[%clk 0:00:40.8]} 1/2-1/2

[Event "*** SCC Grand Prix: Titled Tuesday Blitz"]
[Site "Chess.com"]
[Date "2020.09.29"]
[Round "8"]
[White "Xeniya2005"]
[Black "gumimis"]
[Result "0-1"]
[WhiteElo "2367"]
[BlackElo "2239"]
[TimeControl "180+1"]
[EndTime "11:32:11 PDT"]
[Termination "gumimis won by checkmate"]

1. e4 {[%clk 0:03:00.9]} 1... c5 {[%clk 0:02:58.4]} 2. Be2 {[%clk 0:03:00.8]}
2... Nc6 {[%clk 0:02:55.3]} 3. f4 {[%clk 0:03:00]} 3... g6 {[%clk 0:02:54.6]} 4.
Nf3 {[%clk 0:02:59.7]} 4... Bg7 {[%clk 0:02:55.2]} 5. O-O {[%clk 0:02:57.5]}
5... e6 {[%clk 0:02:54.8]} 6. d3 {[%clk 0:02:55.8]} 6... Nge7 {[%clk 0:02:54.8]}
7. c3 {[%clk 0:02:52.5]} 7... O-O {[%clk 0:02:52.2]} 8. Be3 {[%clk 0:02:51.5]}
8... b6 {[%clk 0:02:39.4]} 9. Nbd2 {[%clk 0:02:49.8]} 9... d5 {[%clk 0:02:38.8]}
10. e5 {[%clk 0:02:45.9]} 10... d4 {[%clk 0:02:33.5]} 11. Bf2 {[%clk 0:02:43.5]}
11... dxc3 {[%clk 0:02:25.9]} 12. bxc3 {[%clk 0:02:42.5]} 12... Nd5 {[%clk
0:02:26.3]} 13. Ne4 {[%clk 0:02:34]} 13... Nxf4 {[%clk 0:02:23.9]} 14. Bg3
{[%clk 0:02:30.9]} 14... Nxe2+ {[%clk 0:02:18.8]} 15. Qxe2 {[%clk 0:02:31.8]}
15... Ba6 {[%clk 0:02:13.6]} 16. c4 {[%clk 0:02:22.9]} 16... Nd4 {[%clk
0:02:08.8]} 17. Nxd4 {[%clk 0:02:12.3]} 17... Qxd4+ {[%clk 0:02:06]} 18. Kh1
{[%clk 0:02:09.8]} 18... Rad8 {[%clk 0:01:59]} 19. Rad1 {[%clk 0:02:06.9]} 19...
Kh8 {[%clk 0:01:45.6]} 20. Nf6 {[%clk 0:02:00.2]} 20... b5 {[%clk 0:01:38.8]}
21. Bf2 {[%clk 0:01:50.1]} 21... Qc3 {[%clk 0:01:17.1]} 22. Bxc5 {[%clk
0:01:47.8]} 22... bxc4 {[%clk 0:01:17.2]} 23. d4 {[%clk 0:01:37.4]} 23... Qa5
{[%clk 0:00:55.4]} 24. Bxf8 {[%clk 0:01:25.8]} 24... Bxf8 {[%clk 0:00:46.8]} 25.
Qe3 {[%clk 0:01:21]} 25... c3 {[%clk 0:00:43.8]} 26. Rf3 {[%clk 0:01:19.3]}
26... Qa4 {[%clk 0:00:41.8]} 27. Rg1 {[%clk 0:01:06.6]} 27... Qxd4 {[%clk
0:00:23.6]} 28. Rh3 {[%clk 0:01:01.6]} 28... h5 {[%clk 0:00:21.1]} 29. Rxh5+
{[%clk 0:00:52.7]} 29... gxh5 {[%clk 0:00:19.4]} 30. Qg5 {[%clk 0:00:51.9]}
30... Qxg1+ {[%clk 0:00:12.5]} 31. Kxg1 {[%clk 0:00:51.7]} 31... Bc5+ {[%clk
0:00:12.7]} 32. Kh1 {[%clk 0:00:52.1]} 32... Rd1# {[%clk 0:00:12.7]} 0-1

[Event "*** SCC Grand Prix: Titled Tuesday Blitz"]
[Site "Chess.com"]
[Date "2020.09.29"]
[Round "8"]
[White "Djager97"]
[Black "NotFischer"]
[Result "1-0"]
[WhiteElo "2475"]
[BlackElo "2297"]
[TimeControl "180+1"]
[EndTime "11:32:12 PDT"]
[Termination "Djager97 won by resignation"]

1. e4 {[%clk 0:03:00.9]} 1... d5 {[%clk 0:02:59.9]} 2. exd5 {[%clk 0:03:00.9]}
2... Nf6 {[%clk 0:03:00.5]} 3. Nf3 {[%clk 0:03:00.6]} 3... Bg4 {[%clk
0:03:00.7]} 4. h3 {[%clk 0:02:57.2]} 4... Bxf3 {[%clk 0:03:00.7]} 5. Qxf3 {[%clk
0:02:57.1]} 5... Qxd5 {[%clk 0:03:01.4]} 6. Qxd5 {[%clk 0:02:55.1]} 6... Nxd5
{[%clk 0:03:02.3]} 7. Bc4 {[%clk 0:02:50.2]} 7... Nb6 {[%clk 0:03:00.7]} 8. Bb3
{[%clk 0:02:46.7]} 8... Nc6 {[%clk 0:03:00]} 9. Nc3 {[%clk 0:02:41.7]} 9... e6
{[%clk 0:03:00.2]} 10. d3 {[%clk 0:02:39.6]} 10... a5 {[%clk 0:03:00.4]} 11. a3
{[%clk 0:02:38.1]} 11... a4 {[%clk 0:03:00.4]} 12. Ba2 {[%clk 0:02:38]} 12...
Be7 {[%clk 0:03:00.4]} 13. Be3 {[%clk 0:02:35.2]} 13... O-O {[%clk 0:02:57.6]}
14. Bxb6 {[%clk 0:02:32.2]} 14... cxb6 {[%clk 0:02:58.5]} 15. O-O-O {[%clk
0:02:29.3]} 15... Rfc8 {[%clk 0:02:55.8]} 16. Ne4 {[%clk 0:02:12.7]} 16... Nd4
{[%clk 0:02:48.3]} 17. c3 {[%clk 0:02:12.7]} 17... b5 {[%clk 0:02:27.8]} 18. Kb1
{[%clk 0:02:10.6]} 18... Nf5 {[%clk 0:02:07.5]} 19. d4 {[%clk 0:02:07.3]} 19...
Rd8 {[%clk 0:01:30.9]} 20. Rhe1 {[%clk 0:01:53.4]} 20... b4 {[%clk 0:01:18.6]}
21. axb4 {[%clk 0:01:49.1]} 21... a3 {[%clk 0:01:18.9]} 22. Bb3 {[%clk
0:01:43.5]} 22... Nd6 {[%clk 0:01:02.4]} 23. bxa3 {[%clk 0:01:21.1]} 23... Rxa3
{[%clk 0:00:58.9]} 24. Kb2 {[%clk 0:01:21.4]} 24... Rda8 {[%clk 0:00:55.7]} 25.
Nxd6 {[%clk 0:00:48.8]} 25... Bxd6 {[%clk 0:00:56.6]} 26. g3 {[%clk 0:00:30.6]}
26... Kf8 {[%clk 0:00:56.4]} 27. f4 {[%clk 0:00:29.9]} 27... h5 {[%clk
0:00:52.8]} 28. h4 {[%clk 0:00:29.6]} 28... Be7 {[%clk 0:00:46.8]} 29. d5 {[%clk
0:00:27.7]} 29... exd5 {[%clk 0:00:46.8]} 30. Rxd5 {[%clk 0:00:27.9]} 30... g6
{[%clk 0:00:45]} 31. Rd7 {[%clk 0:00:27.7]} 31... Bf6 {[%clk 0:00:36.5]} 32.
Rxf7+ {[%clk 0:00:26.5]} 1-0

[Event "*** SCC Grand Prix: Titled Tuesday Blitz"]
[Site "Chess.com"]
[Date "2020.09.29"]
[Round "8"]
[White "Caterpiller35"]
[Black "ExtremeLearner"]
[Result "0-1"]
[WhiteElo "2490"]
[BlackElo "2333"]
[TimeControl "180+1"]
[EndTime "11:32:13 PDT"]
[Termination "ExtremeLearner won by resignation"]

1. d4 {[%clk 0:03:00.9]} 1... d5 {[%clk 0:02:58.5]} 2. Bf4 {[%clk 0:03:00]} 2...
c5 {[%clk 0:02:57.4]} 3. e3 {[%clk 0:03:00.1]} 3... Nc6 {[%clk 0:02:57.1]} 4. c3
{[%clk 0:03:00.3]} 4... Bf5 {[%clk 0:02:57.1]} 5. Qb3 {[%clk 0:02:52.7]} 5...
Qb6 {[%clk 0:02:56.9]} 6. dxc5 {[%clk 0:02:52.9]} 6... Qxb3 {[%clk 0:02:53]} 7.
axb3 {[%clk 0:02:53.8]} 7... e5 {[%clk 0:02:53.6]} 8. Bg3 {[%clk 0:02:53.8]}
8... Bxc5 {[%clk 0:02:44.7]} 9. Nf3 {[%clk 0:02:49.2]} 9... f6 {[%clk 0:02:42]}
10. Nbd2 {[%clk 0:02:48.4]} 10... Nh6 {[%clk 0:02:26.6]} 11. Bb5 {[%clk
0:02:42.2]} 11... Nf7 {[%clk 0:02:19.6]} 12. O-O {[%clk 0:02:41.5]} 12... g5
{[%clk 0:02:17.4]} 13. Rfe1 {[%clk 0:02:39.1]} 13... h5 {[%clk 0:02:16]} 14. h4
{[%clk 0:02:30.2]} 14... g4 {[%clk 0:02:16.1]} 15. e4 {[%clk 0:02:19.6]} 15...
gxf3 {[%clk 0:02:08.1]} 16. exf5 {[%clk 0:02:19.2]} 16... fxg2 {[%clk
0:02:07.3]} 17. Kxg2 {[%clk 0:02:15.4]} 17... Nh6 {[%clk 0:02:05.9]} 18. Bxe5
{[%clk 0:01:38.3]} 18... fxe5 {[%clk 0:02:02.8]} 19. Rxe5+ {[%clk 0:01:39.2]}
19... Kf7 {[%clk 0:01:55.6]} 20. Rxd5 {[%clk 0:01:39]} 20... Be7 {[%clk
0:01:50.9]} 21. Nc4 {[%clk 0:01:28]} 21... Rhg8+ {[%clk 0:01:37.8]} 22. Kf3
{[%clk 0:01:26.7]} 22... Ng4 {[%clk 0:01:25.1]} 23. Bxc6 {[%clk 0:00:45.5]}
23... bxc6 {[%clk 0:01:21.4]} 24. Rd7 {[%clk 0:00:45.6]} 24... Ke8 {[%clk
0:00:50.3]} 25. Raxa7 {[%clk 0:00:18.4]} 25... Rxa7 {[%clk 0:00:49.8]} 26. Rxa7
{[%clk 0:00:19.3]} 26... Nh2+ {[%clk 0:00:49.3]} 27. Kf4 {[%clk 0:00:18.2]}
27... Rg4+ {[%clk 0:00:46.8]} 28. Ke5 {[%clk 0:00:17.5]} 28... Nf3+ {[%clk
0:00:47]} 29. Ke6 {[%clk 0:00:08.3]} 29... Re4+ {[%clk 0:00:46.7]} 0-1

[Event "*** SCC Grand Prix: Titled Tuesday Blitz"]
[Site "Chess.com"]
[Date "2020.09.29"]
[Round "8"]
[White "Roza_Idrisova"]
[Black "KyrgyzFighter"]
[Result "0-1"]
[WhiteElo "2145"]
[BlackElo "2373"]
[TimeControl "180+1"]
[EndTime "11:32:14 PDT"]
[Termination "KyrgyzFighter won on time"]

1. d4 {[%clk 0:03:00.9]} 1... f5 {[%clk 0:01:59.5]} 2. Nf3 {[%clk 0:03:00]} 2...
Nf6 {[%clk 0:01:59.9]} 3. g3 {[%clk 0:02:58.3]} 3... g6 {[%clk 0:02:00.4]} 4.
Bg2 {[%clk 0:02:58.3]} 4... Bg7 {[%clk 0:01:59.3]} 5. O-O {[%clk 0:02:58.2]}
5... O-O {[%clk 0:01:55.7]} 6. c4 {[%clk 0:02:58.2]} 6... d6 {[%clk 0:01:56.1]}
7. Nc3 {[%clk 0:02:57.9]} 7... Qe8 {[%clk 0:01:56.7]} 8. d5 {[%clk 0:02:56.6]}
8... Na6 {[%clk 0:01:56.9]} 9. Nd4 {[%clk 0:02:48.8]} 9... Bd7 {[%clk
0:01:56.5]} 10. e4 {[%clk 0:02:47.2]} 10... fxe4 {[%clk 0:01:51.9]} 11. Nxe4
{[%clk 0:02:46.6]} 11... Nxe4 {[%clk 0:01:52.3]} 12. Bxe4 {[%clk 0:02:46.1]}
12... Nc5 {[%clk 0:01:53.2]} 13. Bg2 {[%clk 0:02:44.3]} 13... Qf7 {[%clk
0:01:53.4]} 14. Be3 {[%clk 0:02:39.8]} 14... a5 {[%clk 0:01:53]} 15. Rc1 {[%clk
0:02:38]} 15... Rac8 {[%clk 0:01:44.7]} 16. b3 {[%clk 0:02:37.5]} 16... c6
{[%clk 0:01:44.8]} 17. Qd2 {[%clk 0:02:27.3]} 17... Kh8 {[%clk 0:01:44.5]} 18.
dxc6 {[%clk 0:02:13.3]} 18... bxc6 {[%clk 0:01:43.1]} 19. Qxa5 {[%clk
0:02:08.6]} 19... e5 {[%clk 0:01:39.6]} 20. Nf3 {[%clk 0:02:03.8]} 20... e4
{[%clk 0:01:30]} 21. Ng5 {[%clk 0:01:47.2]} 21... Qe7 {[%clk 0:01:29.4]} 22. Qd2
{[%clk 0:01:32.7]} 22... Nd3 {[%clk 0:01:20.4]} 23. Rcd1 {[%clk 0:01:30.7]}
23... d5 {[%clk 0:01:20.8]} 24. Nh3 {[%clk 0:01:20.8]} 24... Bxh3 {[%clk
0:01:15.4]} 25. Bxh3 {[%clk 0:01:20.1]} 25... Rce8 {[%clk 0:01:16.1]} 26. cxd5
{[%clk 0:01:19.1]} 26... cxd5 {[%clk 0:01:16]} 27. Bg5 {[%clk 0:01:09.2]} 27...
Qf7 {[%clk 0:01:15.3]} 28. Bh6 {[%clk 0:01:03.3]} 28... Bxh6 {[%clk 0:01:09]}
29. Qxh6 {[%clk 0:01:02.3]} 29... Nxf2 {[%clk 0:01:09.6]} 30. Rde1 {[%clk
0:00:48.9]} 30... e3 {[%clk 0:01:08.1]} 31. Bg2 {[%clk 0:00:47]} 31... e2 {[%clk
0:01:02.1]} 32. Rxe2 {[%clk 0:00:27]} 32... Rxe2 {[%clk 0:00:59.9]} 33. Qg5
{[%clk 0:00:20.5]} 33... Qa7 {[%clk 0:00:53.9]} 0-1